[Event "Mentese ELO February 2022"]
[Site "Mentese"]
[Date "2022.02.19"]
[Round "3.1"]
[White "Turgut, Hakan"]
[Black "Karaburun, Isa Emre"]
[Result "1-0"]
[ECO "B22"]
[WhiteElo "1805"]
[BlackElo "1479"]
[Annotator "NA"]
[PlyCount "33"]
[EventDate "2022.02.19"]
[EventCountry "TUR"]
[SourceTitle "playchess.com"]
[Source "ChessBase"]
[SourceQuality "1"]
[TimeControl "3600+30"]

{[%evp 8,27,18,4,32767,32767,32767,32767,32767,32767,32767,32767,-20,-14,-14,32767,-11,32767,-11,-48,-52,-69]} 1. e4 {[%emt 0:01:00]} c5 {[%emt 0:01:00]} 2. c3 {[%emt 0:00:30]} Nf6 {[%emt 0:00:30]} 3. e5 {[%emt 0:00:00]} Nd5 {[%emt 0:00:00]} 4. d4 {[%emt 0:00:00]} cxd4 {[%emt 0:00:00]} 5. Nf3 {[%emt 0:00:00]} Nc6 {[%emt 0:00:30]} 6. Bc4 {[%emt 0:00:00]} Nb6 {[%emt 0:00:30]} 7. Bb3 {[%emt 0:00:00]} d6 {[%emt 0:00:30]} 8. exd6 {[%emt 0:01:00]} Qxd6 {[%emt 0:00:00]} 9. cxd4 {[%emt 0:01:30]} Be6 {[%emt 0:01:00]} 10. O-O {[%emt 0:04:30]} Bxb3 {[%emt 0:07:30]} 11. Qxb3 {[%emt 0:02:30]} e6 {[%emt 0:02:30]} 12. Nc3 {[%emt 0:01:30]} Be7 {[%emt 0:01:30]} 13. a4 {[%emt 0:09:30]} (13. d5 $11 {deserves consideration.} Nxd5 14. Rd1 (14. Nxd5 Qxd5 15. Qxb7 Nb4 $15)) 13... Qb4 {[%emt 0:11:30]} 14. Qc2 $15 {[%emt 0:04:30]} O-O {[%emt 0:07:30]} 15. Rd1 {[%emt 0:05:30]} Rfd8 {[%emt 0:01:30]} 16. Be3 {[%emt 0:08:30]} Bf6 {[%emt 0:09:30]} 17. Ne4 {[%emt 0:05:30]} 1-0

[Event "Mentese ELO February 2022"]
[Site "Mentese"]
[Date "2022.02.19"]
[Round "3.2"]
[White "Gurbuz, Kerem Nuri"]
[Black "Inci, Okan"]
[Result "0-1"]
[ECO "D38"]
[WhiteElo "1394"]
[BlackElo "1703"]
[Annotator "NA"]
[PlyCount "38"]
[EventDate "2022.02.19"]
[EventCountry "TUR"]
[SourceTitle "playchess.com"]
[Source "ChessBase"]
[SourceQuality "1"]
[TimeControl "3600+30"]

1. d4 {[%emt 0:01:00]} Nf6 {[%emt 0:01:00]} 2. c4 {[%emt 0:00:30]} e6 {[%emt 0:04:30]} 3. Nf3 {[%emt 0:00:30]} d5 {[%emt 0:00:30]} 4. Nc3 {[%emt 0:00:00]} Bb4 {[%emt 0:00:30]} 5. Qc2 {[%emt 0:02:00]} dxc4 {[%emt 0:02:30]} 6. e3 {[%emt 0:04:30]} b5 {[%emt 0:09:30]} 7. a4 {[%emt 0:01:30]} c6 {[%emt 0:00:30]} 8. Be2 {[%emt 0:00:30]} Bb7 {[%emt 0:00:30]} 9. O-O {[%emt 0:00:30]} a6 {[%emt 0:00:30]} 10. e4 {[%emt 0:07:30]} Nbd7 {[%emt 0:08:30]} 11. e5 {[%emt 0:10:30]} Nd5 {[%emt 0:02:30]} 12. Nxd5 {[%emt 0:02:30]} cxd5 {[%emt 0:01:30]} 13. Ng5 {[%emt 0:07:30]} Qe7 {[%emt 0:07:30]} 14. axb5 {[%emt 0:00:30]} axb5 {[%emt 0:00:30]} 15. Rxa8+ {[%emt 0:00:30]} Bxa8 {[%emt 0:00:30]} 16. f4 {[%emt 0:00:30]} h6 {[%emt 0:02:30]} 17. Nf3 {[%emt 0:00:30]} g6 {[%emt 0:00:30]} 18. g4 {[%emt 0:00:30]} h5 {[%emt 0:01:30]} 19. g5 {[%emt 0:00:30]} Nb6 {[%emt 0:00:30]} 0-1

[Event "Mentese ELO February 2022"]
[Site "Mentese"]
[Date "2022.02.19"]
[Round "3.3"]
[White "Taskin, Arda"]
[Black "Karatas, Mehmet Salih"]
[Result "1-0"]
[ECO "E18"]
[WhiteElo "1652"]
[BlackElo "1474"]
[Annotator "NA"]
[PlyCount "34"]
[EventDate "2022.02.19"]
[EventCountry "TUR"]
[SourceTitle "playchess.com"]
[Source "ChessBase"]
[SourceQuality "1"]
[TimeControl "3600+30"]

1. d4 {[%emt 0:01:00]} b6 {[%emt 0:01:00]} 2. Nf3 {[%emt 0:04:30]} e6 {[%emt 0:01:30]} 3. g3 {[%emt 0:00:30]} Bb7 {[%emt 0:01:30]} 4. Bg2 {[%emt 0:00:00]} Nf6 {[%emt 0:01:30]} 5. c4 {[%emt 0:01:00]} Be7 {[%emt 0:01:30]} 6. Nc3 {[%emt 0:01:30]} d5 {[%emt 0:02:30]} 7. Bg5 {[%emt 0:03:30]} h6 {[%emt 0:03:30]} 8. Bxf6 {[%emt 0:00:30]} Bxf6 {[%emt 0:00:30]} 9. O-O {[%emt 0:00:30]} O-O {[%emt 0:02:30]} 10. cxd5 {[%emt 0:01:30]} exd5 {[%emt 0:01:30]} 11. Qb3 {[%emt 0:03:30]} Na6 {[%emt 0:00:30]} 12. Rad1 {[%emt 0:00:30]} Re8 {[%emt 0:15:30]} 13. a3 {[%emt 0:07:30]} c6 {[%emt 0:06:30]} 14. Rfe1 {[%emt 0:04:30]} Nc7 {[%emt 0:05:30]} 15. Qc2 {[%emt 0:10:30]} g6 {[%emt 0:07:30]} 16. Qc1 {[%emt 0:03:30]} Bg7 {[%emt 0:01:41]} 17. Bf1 {[%emt 0:01:30]} f5 {[%emt 0:02:36]} 1-0

[Event "Mentese ELO February 2022"]
[Site "Mentese"]
[Date "2022.02.19"]
[Round "3.4"]
[White "Seker, Bilgesu"]
[Black "Kamisli, Yigit"]
[Result "1-0"]
[ECO "C88"]
[WhiteElo "1681"]
[BlackElo "1427"]
[Annotator "NA"]
[PlyCount "46"]
[EventDate "2022.02.19"]
[EventCountry "TUR"]
[SourceTitle "playchess.com"]
[Source "ChessBase"]
[SourceQuality "1"]
[TimeControl "3600+30"]

1. e4 {[%emt 0:01:00]} e5 {[%emt 0:01:00]} 2. Nf3 {[%emt 0:00:30]} Nc6 {[%emt 0:00:00]} 3. Bb5 {[%emt 0:00:00]} a6 {[%emt 0:01:00]} 4. Ba4 {[%emt 0:00:00]} Nf6 {[%emt 0:00:30]} 5. O-O {[%emt 0:00:00]} Be7 {[%emt 0:00:30]} 6. Re1 {[%emt 0:00:00]} b5 {[%emt 0:00:00]} 7. Bb3 {[%emt 0:00:30]} O-O {[%emt 0:01:00]} 8. a4 {[%emt 0:06:30]} Rb8 {[%emt 0:07:30]} 9. axb5 {[%emt 0:00:30]} axb5 {[%emt 0:00:30]} 10. d3 {[%emt 0:06:30]} d6 {[%emt 0:01:30]} 11. h3 {[%emt 0:00:30]} Be6 {[%emt 0:00:30]} 12. Nbd2 {[%emt 0:00:30]} Bxb3 {[%emt 0:00:30]} 13. Nxb3 {[%emt 0:00:30]} Re8 {[%emt 0:13:30]} 14. Bd2 {[%emt 0:03:30]} Qd7 {[%emt 0:03:30]} 15. Ra6 {[%emt 0:01:30]} Ra8 {[%emt 0:03:30]} 16. Qa1 {[%emt 0:03:30]} Rxa6 {[%emt 0:00:30]} 17. Qxa6 {[%emt 0:00:00]} Rb8 {[%emt 0:03:30]} 18. d4 {[%emt 0:01:00]} exd4 {[%emt 0:01:30]} 19. Nbxd4 {[%emt 0:00:00]} Nxd4 {[%emt 0:03:30]} 20. Nxd4 {[%emt 0:00:00]} Bf8 {[%emt 0:03:30]} 21. Bg5 {[%emt 0:05:30]} Ne8 {[%emt 0:05:24]} 22. Qa7 {[%emt 0:03:30]} Qc8 {[%emt 0:02:24]} 23. Ra1 {[%emt 0:00:30]} h6 {[%emt 0:02:09]} 1-0

[Event "Mentese ELO February 2022"]
[Site "Mentese"]
[Date "2022.02.19"]
[Round "3.5"]
[White "Hekimoglu, Mihriban"]
[Black "Kara, Durmus"]
[Result "1-0"]
[ECO "C40"]
[WhiteElo "1479"]
[BlackElo "1246"]
[Annotator "NA"]
[PlyCount "59"]
[EventDate "2022.02.19"]
[EventCountry "TUR"]
[SourceTitle "playchess.com"]
[Source "ChessBase"]
[SourceQuality "1"]
[TimeControl "3600+30"]

1. e4 {[%emt 0:01:00]} e5 {[%emt 0:01:00]} 2. Nf3 {[%emt 0:00:00]} d5 {[%emt 0:00:00]} 3. exd5 {[%emt 0:02:00]} e4 {[%emt 0:00:00]} 4. Qe2 {[%emt 0:01:30]} Nf6 {[%emt 0:00:30]} 5. Nc3 {[%emt 0:01:30]} Be7 {[%emt 0:00:00]} 6. Nxe4 {[%emt 0:00:30]} O-O {[%emt 0:00:00]} 7. d3 {[%emt 0:14:30]} Re8 {[%emt 0:00:30]} 8. Be3 {[%emt 0:05:30]} Nxd5 {[%emt 0:00:30]} 9. g3 {[%emt 0:00:30]} c6 {[%emt 0:00:30]} 10. Bg2 {[%emt 0:00:30]} Bg4 {[%emt 0:04:30]} 11. O-O {[%emt 0:13:30]} Nd7 {[%emt 0:00:30]} 12. h3 {[%emt 0:01:30]} Bh5 {[%emt 0:01:30]} 13. g4 {[%emt 0:00:30]} Bg6 {[%emt 0:00:00]} 14. Nfd2 {[%emt 0:08:02]} f5 {[%emt 0:02:00]} 15. gxf5 {[%emt 0:01:09]} Bxf5 {[%emt 0:00:30]} 16. Ng3 {[%emt 0:01:33]} Nxe3 {[%emt 0:00:30]} 17. fxe3 {[%emt 0:00:13]} Bg6 {[%emt 0:00:30]} 18. d4 {[%emt 0:01:40]} Bxc2 {[%emt 0:00:30]} 19. Qc4+ {[%emt 0:00:07]} Kh8 {[%emt 0:00:30]} 20. Qxc2 {[%emt 0:00:07]} Bg5 {[%emt 0:00:30]} 21. Nc4 {[%emt 0:02:37]} Nf6 {[%emt 0:00:30]} 22. Qb3 {[%emt 0:01:43]} Qc7 {[%emt 0:00:30]} 23. Nf5 {[%emt 0:00:53]} Rad8 {[%emt 0:00:30]} 24. Ne5 {[%emt 0:01:04]} Rxe5 {[%emt 0:01:30]} 25. dxe5 {[%emt 0:00:08]} Qxe5 {[%emt 0:00:00]} 26. Rad1 {[%emt 0:01:57]} Rg8 {[%emt 0:01:00]} 27. Kh1 {[%emt 0:03:18]} g6 {[%emt 0:00:30]} 28. Nd6 {[%emt 0:00:28]} Kg7 {[%emt 0:03:30]} 29. Qxb7+ {[%emt 0:00:18]} Kh6 {[%emt 0:00:00]} 30. Nf7+ {[%emt 0:00:07]} 1-0

[Event "Mentese ELO February 2022"]
[Site "Mentese"]
[Date "2022.02.19"]
[Round "4.1"]
[White "Turgut, Hakan"]
[Black "Karaburun, Isa Emre"]
[Result "*"]
[ECO "B22"]
[WhiteElo "1805"]
[BlackElo "1479"]
[Annotator "NA RC"]
[PlyCount "33"]
[EventDate "2022.02.19"]
[EventCountry "TUR"]
[SourceTitle "playchess.com"]
[Source "ChessBase"]
[SourceQuality "1"]
[TimeControl "3600+30"]

1. e4 {[%emt 0:01:00]} c5 {[%emt 0:01:00]} 2. c3 {[%emt 0:00:30]} Nf6 {[%emt 0:00:30]} 3. e5 {[%emt 0:00:00]} Nd5 {[%emt 0:00:00]} 4. d4 {[%emt 0:00:00]} cxd4 {[%emt 0:00:00]} 5. Nf3 {[%emt 0:00:00]} Nc6 {[%emt 0:00:30]} 6. Bc4 {[%emt 0:00:00]} Nb6 {[%emt 0:00:30]} 7. Bb3 {[%emt 0:00:00]} d6 {[%emt 0:00:30]} 8. exd6 {[%emt 0:01:00]} Qxd6 {[%emt 0:00:00]} 9. cxd4 {[%emt 0:01:30]} Be6 {[%emt 0:01:00]} 10. O-O {[%emt 0:04:30]} Bxb3 {[%emt 0:07:30]} 11. Qxb3 {[%emt 0:02:30]} e6 {[%emt 0:02:30]} 12. Nc3 {[%emt 0:01:30]} Be7 {[%emt 0:01:30]} 13. a4 {[%emt 0:09:30]} Qb4 {[%emt 0:11:30]} 14. Qc2 {[%emt 0:04:30]} O-O {[%emt 0:07:30]} 15. Rd1 {[%emt 0:05:30]} Rfd8 {[%emt 0:01:30]} 16. Be3 {[%emt 0:08:30]} Bf6 {[%emt 0:09:30]} 17. Ne4 {[%emt 0:05:30]} *

[Event "Mentese ELO February 2022"]
[Site "Mentese"]
[Date "2022.02.20"]
[Round "4.1"]
[White "Taskin, Arda"]
[Black "Turgut, Hakan"]
[Result "1/2-1/2"]
[ECO "D11"]
[WhiteElo "1652"]
[BlackElo "1805"]
[Annotator "NA"]
[PlyCount "173"]
[EventDate "2022.02.19"]
[EventCountry "TUR"]
[SourceTitle "playchess.com"]
[Source "ChessBase"]
[SourceQuality "1"]
[TimeControl "3600+30"]

{[%evp 9,171,15,22,16,10,21,16,18,11,0,0,-2,7,-15,-14,-27,-21,-58,-62,-49,0,-32,-30,-23,0,0,41,-47,-54,-44,-21,-33,-26,-29,-19,-14,-12,-11,-14,-12,-7,-5,-8,-8,0,-39,-17,-22,-22,-69,-64,32767,32767,0,0,-68,32767,32767,32767,32767,32767,-106,-120,-104,-102,-159,32767,32767,32767,32767,-171,32767,32767,32767,32767,32767,32767,32767,32767,32767,32767,32767,32767,-99,-61,32767,-61,-53,-31,-35,-36,32767,0,0,-12,-12,32767,32767,32767,32767,32767,32767,32767,0,32767,-8,32767,0,0,0,0,0,32767,-28000,32767,-28000,0,0,32767,32767,-28000,-8,-8,-28000,-8,-28000,0,-8,-8,-28000,0,-28000,-28000,0,-28000,0,0,0,-8,-8,-8,0,0,0,0,-28000,0,0,0,0,0,0,0,0,-8,32767,32767,32767,32767,0,-28000,32767,0,-28000]} 1. d4 {[%emt 0:01:00]} Nf6 {[%emt 0:01:00]} 2. c4 {[%emt 0:00:30]} c6 {[%emt 0:00:30]} 3. Nf3 {[%emt 0:00:30]} d5 {[%emt 0:00:30]} 4. Qc2 {[%emt 0:00:30]} g6 {[%emt 0:01:30]} 5. e3 {[%emt 0:03:30]} Bf5 {[%emt 0:00:00]} 6. Bd3 {[%emt 0:00:30]} Bxd3 {[%emt 0:00:00]} 7. Qxd3 {[%emt 0:00:30]} Bg7 {[%emt 0:01:30]} 8. O-O {[%emt 0:00:30]} O-O {[%emt 0:01:30]} 9. Nbd2 {[%emt 0:00:30]} c5 {[%emt 0:03:30]} 10. cxd5 {[%emt 0:04:30]} Qxd5 {[%emt 0:04:30]} 11. e4 {[%emt 0:04:30]} Qd7 {[%emt 0:03:30]} 12. d5 {[%emt 0:02:30]} e6 {[%emt 0:01:30]} 13. d6 {[%emt 0:01:30]} (13. Ne5 $11 {deserves consideration.} Qc8 14. Ndf3) 13... Nc6 {[%emt 0:10:30]} 14. Rd1 {[%emt 0:07:30]} b5 {[%emt 0:06:30]} ({But not} 14... Nb4 15. Qe2 $11) ({Black should try} 14... Ne8 $15) 15. e5 {[%emt 0:06:30] [#]} (15. Qxb5 $11 {was preferrable.} Qxd6 16. Qe2) 15... c4 $1 {[%emt 0:00:30]} 16. Qe2 {[%emt 0:03:30]} Ng4 {[%emt 0:01:30]} 17. Ne4 {[%emt 0:06:30]} Ncxe5 {[%emt 0:02:30]} ({Black should try} 17... Ngxe5 $11 18. Bh6 Nd3 19. Bxg7 Kxg7) 18. Nxe5 {[%emt 0:04:40]} ({White should play} 18. h3 $1 $14 Nxf3+ 19. Qxf3) 18... Nxe5 {[%emt 0:00:30]} 19. Bg5 {[%emt 0:00:48]} Nd3 {[%emt 0:08:30]} 20. Bf6 {[%emt 0:03:04]} e5 {[%emt 0:00:30]} 21. Bxg7 {[%emt 0:02:58]} Kxg7 {[%emt 0:00:30]} 22. Nc5 $1 {[%emt 0:00:35]} Qxd6 {[%emt 0:00:30]} 23. Nxd3 {[%emt 0:00:04]} cxd3 {[%emt 0:00:30]} 24. Rxd3 {[%emt 0:00:05]} Qc5 {[%emt 0:06:50]} 25. Rc3 $11 {[%emt 0:01:23]} Qd5 {[%emt 0:00:01]} 26. Rd3 $1 {[%emt 0:01:28]} (26. Rd1 Qxa2 27. Qxe5+ Kg8 $15) 26... Qc5 {[%emt 0:00:04]} 27. Rad1 {[%emt 0:00:57]} Rfe8 {[%emt 0:02:01]} 28. Rc3 {[%emt 0:00:55]} Qb6 {[%emt 0:03:41]} 29. Rd5 {[%emt 0:02:45]} (29. Re3 $11 {is superior.}) 29... b4 {[%emt 0:01:35]} 30. Rcc5 {[%emt 0:02:11]} Rad8 {[%emt 0:01:05]} 31. Rxd8 {[%emt 0:02:24]} Qxd8 {[%emt 0:00:06]} 32. h3 {[%emt 0:01:44]} ({White should try} 32. Rxe5 $11 Rxe5 33. Qxe5+ Qf6 34. Qe2) 32... Qd4 {[%emt 0:01:05]} 33. Rc4 {[%emt 0:00:30]} Qb6 {[%emt 0:00:30]} 34. Qf3 {[%emt 0:00:30]} Re6 {[%emt 0:00:19]} 35. Rc2 {[%emt 0:03:11]} (35. Qe4 $15) 35... Qd4 {[%emt 0:01:13]} 36. Qe2 {[%emt 0:00:48]} Rf6 {[%emt 0:02:12]} 37. Rc4 {[%emt 0:00:19]} ({Better is} 37. Rd2 Qc5 38. b3) 37... Rxf2 {[%emt 0:01:36]} 38. Rxd4 {[%emt 0:00:13]} Rxe2 {[%emt 0:00:02]} 39. Rxb4 {[%emt 0:00:05]} Rc2 {[%emt 0:00:52]} 40. a4 {[%emt 0:00:58]} a5 {[%emt 0:02:21]} 41. Rb5 {[%emt 0:00:37]} e4 {[%emt 0:00:07]} 42. b3 {[%emt 0:01:15]} Rb2 {[%emt 0:00:17]} 43. Rxa5 {[%emt 0:00:50]} Rxb3 {[%emt 0:00:12]} 44. Rb5 {[%emt 0:00:33]} Ra3 {[%emt 0:00:16]} 45. a5 {[%emt 0:00:12]} Ra2 {[%emt 0:01:04]} 46. g4 $1 {[%emt 0:00:58]} h6 {[%emt 0:01:14]} 47. Re5 {[%emt 0:00:35]} Ra4 {[%emt 0:00:57]} 48. Kf2 {[%emt 0:00:46]} Kf6 {[%emt 0:00:43]} 49. Rb5 {[%emt 0:00:43]} Ra3 {[%emt 0:00:15]} 50. h4 {[%emt 0:00:18]} Ke6 {[%emt 0:01:07]} 51. h5 {[%emt 0:00:52]} Kf6 {[%emt 0:01:27]} 52. Ke2 {[%emt 0:00:37]} Rg3 {[%emt 0:00:22]} 53. a6 {[%emt 0:00:32]} Ra3 {[%emt 0:00:05]} 54. hxg6 {[%emt 0:00:27]} fxg6 {[%emt 0:00:07]} 55. Rb6+ {[%emt 0:00:08]} Kg5 {[%emt 0:00:07]} 56. Re6 {[%emt 0:00:15]} e3 {[%emt 0:00:37]} 57. Kf3 {[%emt 0:00:44]} Ra4 {[%emt 0:00:57]} 58. Kxe3 {[%emt 0:01:01]} Ra3+ {[%emt 0:00:42]} 59. Kf2 {[%emt 0:00:15]} h5 {[%emt 0:00:24]} 60. gxh5 {[%emt 0:00:06]} Kxh5 {[%emt 0:00:02]} 61. Kg2 {[%emt 0:00:10]} g5 {[%emt 0:00:08]} 62. Rc6 {[%emt 0:00:13]} Kh4 {[%emt 0:00:05]} 63. Rh6+ {[%emt 0:01:26]} Kg4 {[%emt 0:00:05]} 64. Rc6 {[%emt 0:00:08]} Ra2+ {[%emt 0:00:04]} 65. Kf1 {[%emt 0:00:06]} Kh3 {[%emt 0:00:22]} 66. Rc3+ {[%emt 0:00:17]} Kh4 {[%emt 0:00:07]} 67. Rc6 {[%emt 0:00:16]} Kh3 {[%emt 0:00:08]} 68. Rc3+ {[%emt 0:00:05]} Kh2 {[%emt 0:01:01]} 69. Rc6 {[%emt 0:00:30]} g4 {[%emt 0:00:08]} 70. Rh6+ {[%emt 0:00:07]} Kg3 {[%emt 0:00:04]} 71. Rc6 {[%emt 0:00:08]} Kh2 {[%emt 0:00:09]} 72. Rh6+ {[%emt 0:00:07]} Kg3 {[%emt 0:00:01]} 73. Rc6 {[%emt 0:00:26]} Ra1+ {[%emt 0:00:08]} 74. Ke2 {[%emt 0:00:07]} Kh2 {[%emt 0:01:30]} 75. Rh6+ {[%emt 0:00:18]} Kg2 {[%emt 0:00:11]} 76. Rf6 {[%emt 0:00:58]} Ra3 {[%emt 0:01:07]} 77. Rf2+ {[%emt 0:00:27]} Kg3 $5 {[%emt 0:00:09]} 78. Rf6 {[%emt 0:00:07]} Kg2 {[%emt 0:00:11]} (78... Kh2 $11) 79. Rf2+ {[%emt 0:00:07]} Kh3 {[%emt 0:00:31]} 80. Rf6 {[%emt 0:00:13]} g3 {[%emt 0:00:45]} 81. Rh6+ {[%emt 0:00:25]} Kg2 {[%emt 0:00:08]} 82. Rc6 {[%emt 0:00:55]} Ra2+ {[%emt 0:00:15]} 83. Ke1 {[%emt 0:00:44]} Kh2 {[%emt 0:00:08]} 84. Rh6+ {[%emt 0:00:08]} Kg1 {[%emt 0:00:07]} 85. Re6 {[%emt 0:01:44]} Kg2 $11 {[%emt 0:00:47]} 86. Re2+ {[%emt 0:00:29]} Rxe2+ {[%emt 0:00:07]} 87. Kxe2 {[%emt 0:00:06]} 1/2-1/2

[Event "Mentese ELO February 2022"]
[Site "Mentese"]
[Date "2022.02.20"]
[Round "4.2"]
[White "Inci, Okan"]
[Black "Seker, Bilgesu"]
[Result "0-1"]
[ECO "D78"]
[WhiteElo "1703"]
[BlackElo "1681"]
[Annotator "NA"]
[PlyCount "86"]
[EventDate "2022.02.19"]
[EventCountry "TUR"]
[SourceTitle "playchess.com"]
[Source "ChessBase"]
[SourceQuality "1"]
[TimeControl "3600+30"]

1. d4 {[%emt 0:02:00]} Nf6 {[%emt 0:01:00]} 2. c4 {[%emt 0:00:30]} g6 {[%emt 0:00:00]} 3. Nf3 {[%emt 0:00:30]} Bg7 {[%emt 0:00:00]} 4. g3 {[%emt 0:00:30]} c6 {[%emt 0:00:30]} 5. Bg2 {[%emt 0:00:30]} d5 {[%emt 0:00:30]} 6. O-O {[%emt 0:00:30]} O-O {[%emt 0:01:30]} 7. cxd5 {[%emt 0:02:30]} cxd5 {[%emt 0:04:30]} 8. Nc3 {[%emt 0:00:00]} Ne4 {[%emt 0:04:30]} 9. Bf4 {[%emt 0:03:00]} Nxc3 {[%emt 0:06:30]} 10. bxc3 {[%emt 0:00:00]} Nc6 {[%emt 0:15:30]} 11. h3 {[%emt 0:05:00]} Bf5 {[%emt 0:00:30]} 12. Ne5 {[%emt 0:17:30]} Nxe5 {[%emt 0:02:30]} 13. Bxe5 {[%emt 0:01:30]} Bxe5 {[%emt 0:00:30]} 14. dxe5 {[%emt 0:00:30]} Be4 {[%emt 0:01:30]} 15. Bxe4 {[%emt 0:00:00]} dxe4 {[%emt 0:00:00]} 16. Qd4 {[%emt 0:00:00]} Qxd4 {[%emt 0:05:00]} 17. cxd4 {[%emt 0:00:30]} Rfd8 {[%emt 0:00:30]} 18. e3 {[%emt 0:00:30]} Rac8 {[%emt 0:00:30]} 19. Rfc1 {[%emt 0:00:30]} b5 {[%emt 0:04:30]} 20. Rab1 {[%emt 0:01:30]} a6 {[%emt 0:00:30]} 21. Kf1 {[%emt 0:00:30]} f5 {[%emt 0:00:30]} 22. exf6 {[%emt 0:01:30]} exf6 {[%emt 0:00:30]} 23. Ke2 {[%emt 0:01:30]} Kf7 {[%emt 0:00:30]} 24. f3 {[%emt 0:03:30]} f5 {[%emt 0:00:30]} 25. g4 {[%emt 0:01:30]} Ke6 {[%emt 0:01:08]} 26. f4 {[%emt 0:08:23]} a5 {[%emt 0:06:14]} 27. gxf5+ {[%emt 0:04:41]} gxf5 {[%emt 0:00:30]} 28. Rxc8 {[%emt 0:00:30]} Rxc8 {[%emt 0:00:00]} 29. Kd2 {[%emt 0:00:00]} b4 {[%emt 0:01:45]} 30. Rg1 {[%emt 0:02:52]} Rc3 {[%emt 0:01:56]} 31. Rg7 {[%emt 0:06:22]} Ra3 {[%emt 0:01:35]} 32. Rxh7 {[%emt 0:00:06]} Rxa2+ {[%emt 0:00:04]} 33. Kc1 {[%emt 0:01:40]} a4 {[%emt 0:03:13]} 34. Rb7 {[%emt 0:00:30]} b3 {[%emt 0:00:46]} 35. Rb4 {[%emt 0:02:17]} Kd5 {[%emt 0:00:42]} 36. h4 {[%emt 0:01:05]} Re2 {[%emt 0:02:11]} 37. Rxa4 {[%emt 0:00:21]} Rxe3 {[%emt 0:00:05]} 38. h5 {[%emt 0:01:37]} Rh3 {[%emt 0:00:10]} 39. Ra5+ {[%emt 0:01:38]} Kxd4 {[%emt 0:00:09]} 40. Rxf5 {[%emt 0:00:09]} e3 {[%emt 0:01:46]} 41. Kd1 {[%emt 0:00:46]} b2 {[%emt 0:00:48]} 42. Kc2 {[%emt 0:00:28]} e2 {[%emt 0:00:20]} 43. Re5 {[%emt 0:00:37]} Re3 {[%emt 0:00:13]} 0-1

[Event "Mentese ELO February 2022"]
[Site "Mentese"]
[Date "2022.02.20"]
[Round "4.3"]
[White "Akbay, Anil"]
[Black "Hekimoglu, Mihriban"]
[Result "1/2-1/2"]
[ECO "D02"]
[WhiteElo "1481"]
[BlackElo "1479"]
[Annotator "NA"]
[PlyCount "75"]
[EventDate "2022.02.19"]
[EventCountry "TUR"]
[SourceTitle "playchess.com"]
[Source "ChessBase"]
[SourceQuality "1"]
[TimeControl "3600+30"]

1. Nf3 {[%emt 0:01:00]} d5 {[%emt 0:01:00]} 2. d4 {[%emt 0:00:30]} Nf6 {[%emt 0:00:00]} 3. g3 {[%emt 0:00:30]} g6 {[%emt 0:01:00]} 4. Bg2 {[%emt 0:00:30]} Bg7 {[%emt 0:00:30]} 5. O-O {[%emt 0:00:30]} O-O {[%emt 0:00:00]} 6. Re1 {[%emt 0:05:30]} c5 {[%emt 0:01:00]} 7. c3 {[%emt 0:00:30]} Nc6 {[%emt 0:00:30]} 8. Na3 {[%emt 0:06:30]} Bf5 {[%emt 0:06:30]} 9. Nc2 {[%emt 0:07:30]} Bxc2 {[%emt 0:03:30]} 10. Qxc2 {[%emt 0:00:00]} cxd4 {[%emt 0:00:00]} 11. cxd4 {[%emt 0:01:00]} Qb6 {[%emt 0:02:00]} 12. Rd1 {[%emt 0:03:30]} Rac8 {[%emt 0:00:30]} 13. Qb3 {[%emt 0:04:30]} Qxb3 {[%emt 0:00:30]} 14. axb3 {[%emt 0:00:30]} Ne4 {[%emt 0:02:30]} 15. e3 {[%emt 0:04:30]} e6 {[%emt 0:03:30]} 16. Bd2 {[%emt 0:03:30]} Rc7 {[%emt 0:03:30]} 17. Rac1 {[%emt 0:04:30]} Rfc8 {[%emt 0:00:30]} 18. Be1 {[%emt 0:02:30]} Nd6 {[%emt 0:11:30]} 19. Bd2 {[%emt 0:06:52]} a6 {[%emt 0:01:30]} 20. Bf1 {[%emt 0:01:42]} h6 {[%emt 0:04:30]} 21. Bd3 {[%emt 0:00:40]} e5 {[%emt 0:01:30]} 22. dxe5 {[%emt 0:00:12]} Nxe5 {[%emt 0:02:30]} 23. Nxe5 {[%emt 0:01:15]} Rxc1 {[%emt 0:02:30]} 24. Rxc1 {[%emt 0:00:55]} Rxc1+ {[%emt 0:00:30]} 25. Bxc1 {[%emt 0:00:05]} Bxe5 {[%emt 0:00:00]} 26. Kf1 {[%emt 0:02:21]} Kg7 {[%emt 0:00:00]} 27. h3 {[%emt 0:00:38]} Ne4 {[%emt 0:01:30]} 28. Ke2 {[%emt 0:02:56]} f5 {[%emt 0:02:23]} 29. g4 {[%emt 0:01:21]} Kf6 {[%emt 0:01:12]} 30. Bxe4 {[%emt 0:03:36]} dxe4 {[%emt 0:05:57]} 31. f4 {[%emt 0:02:07]} exf3+ {[%emt 0:00:06]} 32. Kxf3 {[%emt 0:00:06]} Kg5 {[%emt 0:02:48]} 33. e4+ {[%emt 0:01:44]} f4 {[%emt 0:00:30]} 34. b4 {[%emt 0:00:47]} h5 {[%emt 0:02:19]} 35. b3 {[%emt 0:01:00]} hxg4+ {[%emt 0:03:26]} 36. hxg4 {[%emt 0:00:08]} b5 {[%emt 0:00:18]} 37. Bd2 {[%emt 0:00:26]} Bd6 {[%emt 0:00:06]} 38. Bc3 {[%emt 0:00:55]} 1/2-1/2